Cogmind - Beta 13 @@@ ROGUE MODE // 2024.05.27 @ 14:54:12 // AFD2020/Player2 Player: Terminus Result: Core destroyed Performance ------------- Evolutions (5) 2500 Regions Visited (19) 3800 Robots Destroyed (285) 1425 Value Destroyed (11793) 11793 Prototype IDs (220) 4400 Alien Tech Used (0) 0 Bonus (15584) 15584 TOTAL SCORE: 39502 Bonus ------- Triggered High Security 500 High Alert Combat Kills 5910 Follower Combat Kills 7562 Network Hubs Disabled 200 Met Data Miner 300 Used Data Conduit 3000 Met R17 at Cetus 500 Pursued by Intercept 500 Friendly Fire -2888 Cogmind --------- Core Integrity 0/1000 Matter 217/300 Energy 98/515 System Corruption 20% Temperature Cool (0) Movement Immobile (Siege) Location -5/Factory Parts ------- > --- POWER (2) -------- Improved Deuterium Engine Antimatter Reactor > --- PROPULSION (4) --- Centrium Heavy Treads Centrium Heavy Treads > --- UTILITY (7) ------ Experimental Heat Sink Huge Storage Unit Salvage Targeting Computer Core Analyzer Improved Medium Armor Plating Improved Hacking Suite > --- WEAPON (4) ------- KE Penetrator KE Penetrator Advanced KE Penetrator Advanced KE Penetrator > --- INVENTORY (25) --- Reinforced Fission Core Heavy Treads Heavy Treads Heavy Treads Centrium Heavy Treads High-capacity Matter Pod (200) Advanced Sensor Array Advanced Terrain Scan Processor Layered Medium Armor Plating Centrium Medium Armor Plating Ghost Barrier Long-range Tractor Beam Long-range Tractor Beam Cooled Plasma Cannon Advanced KE Penetrator 8R-AWN's Boregun Rocket Launcher Peak State ------------ > --- POWER ------------ Antimatter Reactor Quantum Reactor > --- PROPULSION ------- Centrium Heavy Treads Centrium Heavy Treads > --- UTILITY ---------- Improved Cooling System Huge Storage Unit Salvage Targeting Computer Core Analyzer Centrium Medium Armor Plating Force Field Improved Hacking Suite > --- WEAPON ----------- Gauss Rifle Gauss Rifle Improved KE Penetrator Advanced KE Penetrator > --- INVENTORY -------- Antimatter Reactor Centrium Heavy Treads Centrium Heavy Treads Experimental Heat Sink High-capacity Matter Pod Advanced Sensor Array Advanced Terrain Scan Processor Improved Medium Armor Plating Improved Medium Armor Plating Layered Medium Armor Plating Centrium Medium Armor Plating Improved Remote Force Field Ghost Barrier Long-range Tractor Beam Long-range Tractor Beam Cooled Plasma Cannon Gauss Rifle KE Penetrator KE Penetrator Advanced KE Penetrator Advanced KE Penetrator 8R-AWN's Boregun Rocket Launcher [Rating: 120] Favorites ----------- Power Heavy Deuterium Engine Engine Heavy Deuterium Engine Power Core Reinforced Fission Core Reactor Quantum Reactor Propulsion Advanced Treads Treads Advanced Treads Utility Huge Storage Unit Device Shield Generator Storage Huge Storage Unit Processor Core Analyzer Hackware Hacking Suite Protection Hardened Medium Armor Plating Weapon Gauss Rifle Energy Gun Medium Laser Energy Cannon Cooled Plasma Cannon Ballistic Gun Gauss Rifle Launcher Rocket Launcher Special Weapon Remote Datajack Piercing Weapon Spear Build | -11 -10 -10 -9 -9 -9 -8 -8 -8 -7 -7 -7 -7 -6 -6 -6 -6 -6 -6 -5 ------- Run | Yrd Mat Min Mat Min Exi Min Mat Sto Fac Low Low Dat Pro Fac Ext Cet Arc Hub Fac Slots Evolved 10 | . . . 2 . . . 2 . 2 . . . . 2 . . . . 2 Power 1 | . . . . . . . . . . . . . . . . . . . 1 Propulsion 2 | . . . . . . . 1 . 1 . . . . . . . . . . Utility 5 | . . . 1 . . . . . 1 . . . . 2 . . . . 1 Weapon 2 | . . . 1 . . . 1 . . . . . . . . . . . . Parts Attached 202 | 6 8 3 17 . 10 1 20 11 15 5 1 4 . 20 7 7 . 6 61 Power 17 | 1 1 . 2 . . . 1 . 1 . . . . . . 1 . . 10 Engine 9 | 1 1 . 2 . . . 1 . 1 . . . . . . . . . 3 Core 1 | . . . . . . . . . . . . . . . . . . . 1 Reactor 7 | . . . . . . . . . . . . . . . . 1 . . 6 Propulsion 26 | 2 . . 5 . 1 . 4 3 3 . . . . 2 2 2 . . 2 Treads 26 | 2 . . 5 . 1 . 4 3 3 . . . . 2 2 2 . . 2 Leg . | . . . . . . . . . . . . . . . . . . . . Wheel . | . . . . . . . . . . . . . . . . . . . . Hover . | . . . . . . . . . . . . . . . . . . . . Flight . | . . . . . . . . . . . . . . . . . . . . Utility 83 | 1 3 . 5 . 6 . 8 4 5 3 . 2 . 9 4 2 . 3 28 Device 37 | . 1 . 2 . 2 . 3 2 3 3 . . . 4 1 . . 1 15 Storage 3 | 1 2 . . . . . . . . . . . . . . . . . . Processor 5 | . . . . . 1 . . . . . . . . 1 1 1 . . 1 Hackware 5 | . . . . . . . . . 1 . . 2 . 1 . . . . 1 Protection 33 | . . . 3 . 3 . 5 2 1 . . . . 3 2 1 . 2 11 Artifact . | . . . . . . . . . . . . . . . . . . . . Weapon 76 | 2 4 3 5 . 3 1 7 4 6 2 1 2 . 9 1 2 . 3 21 Energy Gun 2 | 1 . . . . . . . . 1 . . . . . . . . . . Energy Cannon 1 | . . . . . . . . . . . . . . . . . . 1 . Ballistic Gun 64 | 1 3 2 5 . 2 1 7 4 3 1 . 2 . 8 1 2 . 2 20 Ballistic Cannon . | . . . . . . . . . . . . . . . . . . . . Launcher 5 | . 1 1 . . 1 . . . 1 . . . . . . . . . 1 Special Weapon 1 | . . . . . . . . . 1 . . . . . . . . . . Impact Weapon . | . . . . . . . . . . . . . . . . . . . . Slashing Weapon . | . . . . . . . . . . . . . . . . . . . . Piercing Weapon 3 | . . . . . . . . . . 1 1 . . 1 . . . . . Special Melee Weapon . | . . . . . . . . . . . . . . . . . . . . Unidentified Prototypes 9 | . . . 2 . 2 . . 1 2 . . 2 . . . . . . . Parts Lost 35 | . . . 2 . 1 . . . . 1 . . . 12 . 3 . . 16 Power 6 | . . . 2 . . . . . . . . . . . . . . . 4 Propulsion 4 | . . . . . . . . . . . . . . 2 . 1 . . 1 Utility 9 | . . . . . 1 . . . . 1 . . . 3 . . . . 4 Weapon 16 | . . . . . . . . . . . . . . 7 . 2 . . 7 Highest Loss Streak 7 | . . . 1 . 1 . . . . 1 . . . 4 . 3 . . 7 To Critical Strikes 1 | . . . . . . . . . . . . . . . . 1 . . . Average Slot Usage (%) 98 | . 97 100 99 100 100 100 99 98 99 100 100 100 100 99 100 92 86 86 86 Engine 8 | . 14 14 10 11 11 11 9 9 7 7 7 7 7 6 6 4 . . . Treads 25 | . 28 28 21 22 22 22 27 26 29 30 30 30 30 25 26 19 13 13 10 Device 10 | . 11 14 16 11 8 . 8 8 7 7 7 7 7 13 9 6 6 6 13 Storage 8 | . 14 14 11 11 11 11 9 9 7 7 7 7 7 6 6 6 6 6 5 Processor 2 | . . . . . 2 11 . . . . . . . 6 9 13 13 13 11 Hackware 2 | . . . . . . . . . 7 7 7 7 7 6 6 6 6 6 5 Protection 6 | . . . 5 11 11 11 8 8 6 7 7 7 7 5 6 6 6 5 2 Ballistic Gun 29 | . 22 27 32 33 32 33 36 35 29 29 25 26 30 25 26 26 26 25 22 Naked Turns . | . . . . . . . . . . . . . . . . . . . . Heaviest Build 155 | 11 90 92 106 106 107 107 111 111 114 114 114 117 114 116 116 125 125 130 155 Greatest Support 160 | 40 40 40 46 46 46 46 68 66 88 88 88 88 88 88 89 160 160 160 160 Greatest Overweight (x) 2 | . 2 2 2 2 2 2 1 1 1 1 1 1 1 1 1 1 . . . Average Overweight (x) 1 | . . 2 2 2 2 2 1 1 1 1 1 1 1 1 1 . . . . Largest Inventory Capacity 25 | 8 25 25 25 25 25 25 25 25 25 25 25 25 25 25 25 25 25 25 25 Average Capacity 24 | 6 18 25 25 25 25 25 25 25 25 25 25 25 25 25 25 25 25 25 25 Most Carried 25 | 2 15 18 25 25 25 25 25 25 25 25 24 25 25 25 25 25 25 25 25 Average Carried 23 | 1 10 17 23 25 24 24 24 24 24 24 24 24 24 23 24 24 24 24 23 Final Capacity 25 | 8 25 25 25 25 25 25 25 25 25 25 25 25 25 25 25 25 25 25 25 Final Carried 25 | 2 15 18 25 25 25 25 25 25 25 24 24 25 25 23 25 25 25 25 21 Class Distribution -------------------- 58% | Tank 13% | Mutant 11% | Scavenger-Gunner 5% | Gunner 5% | Scavenger-Tank 4% | Hacker-Tank Dominant Class ---------------- Mutant | -10/Materials Mutant | -10/Mines Tank | -9/Materials Tank | -9/Mines Tank | -9/Exiles Tank | -8/Mines Tank | -8/Materials Tank | -8/Storage Tank | -7/Factory Tank | -7/Lower Caves Tank | -7/Lower Caves Tank | -7/Data Miner Hacker-Tank | -6/Proximity Caves Scavenger-Tank | -6/Factory Scavenger-Gunner | -6/Extension Scavenger-Gunner | -6/Cetus Scavenger-Gunner | -6/Archives Scavenger-Gunner | -6/Hub_04(d) Scavenger-Tank | -5/Factory Resources | -11 -10 -10 -9 -9 -9 -8 -8 -8 -7 -7 -7 -7 -6 -6 -6 -6 -6 -6 -5 ----------- Run | Yrd Mat Min Mat Min Exi Min Mat Sto Fac Low Low Dat Pro Fac Ext Cet Arc Hub Fac Matter Collected 11142 | 202 207 145 608 71 313 131 1077 847 785 415 47 254 51 1152 601 206 222 469 3339 Remotely 3140 | . . . . . 132 . 230 129 214 125 . . . 584 . . . . 1726 Salvage Created 14089 | . 136 172 869 128 117 . 1085 1319 1132 303 95 275 142 817 559 371 . 785 5784 Parts 730 | . 14 7 48 11 1 . 61 74 68 22 6 12 5 43 32 17 . 43 266 Haulers Intercepted 22 | . 1 . 4 . . . 6 5 3 . . . . . . . . 1 2 Recyclers Shooed 11 | . 2 2 . . . . 3 . 1 . . . . 2 1 . . . . Parts Field Recycled . | . . . . . . . . . . . . . . . . . . . . Retrieved Matter . | . . . . . . . . . . . . . . . . . . . . Parts Self-Destructed 61 | . . . . . . . . . . 43 6 . 12 . . . . . . Prevented 2 | . . . . . . . . . . 1 . . 1 . . . . . . Kills | -11 -10 -10 -9 -9 -9 -8 -8 -8 -7 -7 -7 -7 -6 -6 -6 -6 -6 -6 -5 ------- Run | Yrd Mat Min Mat Min Exi Min Mat Sto Fac Low Low Dat Pro Fac Ext Cet Arc Hub Fac Combat Hostiles Destroyed 225 | . 5 18 11 4 4 . 9 17 17 6 4 3 3 14 9 4 . 8 89 Guns 194 | . 2 2 11 4 2 . 9 17 15 6 4 3 3 14 9 4 . 8 81 AOE 31 | . 3 16 . . 2 . . . 2 . . . . . . . . . 8 Classes Destroyed 22 | . 5 2 4 . . . 3 1 2 . . . . 2 2 . . . 1 Worker 18 | . . 1 3 . . . 1 2 3 . . . . 1 . . . 4 3 Builder 6 | . . . 1 . . . 1 1 . . . . . 1 . . . . 2 Tunneler 3 | . 1 . . 1 . . . . . . . . . 1 . . . . . Hauler 22 | . 1 . 4 . . . 6 5 3 . . . . . . . . 1 2 Recycler 11 | . . . 2 . . . 5 . 2 . . . . 1 . . . . 1 Mechanic 6 | . . . . . . . 1 2 . . . . . . . . . . 3 Operator 3 | . . . 1 . . . . 2 . . . . . . . . . . . Watcher 14 | . 1 . 1 . . . 2 1 . . . . . 2 1 2 . 2 2 Swarmer 26 | . 4 . 2 2 . . 2 . 3 3 4 . 1 2 1 . . . 2 Cutter 1 | . . . . . . . . . . . . . . 1 . . . . . Saboteur 6 | . . . . . . . . . . . . . . . . . . . 6 Grunt 88 | . 1 2 7 2 . . 3 13 7 1 . . 2 6 3 . . 3 38 Brawler 10 | . . . . . . . . . . . . . . 1 . . . . 9 Duelist 16 | . . . . . . . . 1 2 1 . . . . . . . . 12 Protector 7 | . . . . . . . . . 2 . . . . 1 . . . . 4 Sentry 16 | . . . 2 . . . 2 3 . 1 . . . . 2 . . 3 3 Demolisher 2 | . . . . . . . . . . . . . . . 1 . . . 1 Specialist 1 | . . . . . . . 1 . . . . . . . . . . . . Hunter 7 | . . . . . . . . . . . . . . . 2 . . 1 4 Programmer 14 | . . . . . . . . . 3 . . . . 2 . . . 1 8 Heavy 2 | . . . . . . . 1 . . . . . . 1 . . . . . Cetus Guard 4 | . . . . . . . . . . . . . . . . 4 . . . Enhanced Grunt 3 | . . . . . . . . . . . . 3 . . . . . . . Tracker 1 | . . . . . . . . . . . . . . . . . . . 1 Combat Programmer 1 | . . . . . . . . . . . . . . . . . . . 1 Decomposer 2 | . . . . . . . . . . 2 . . . . . . . . . Assembled 19 | . . 16 . . 3 . . . . . . . . . . . . . . Savage 1 | . . . . . . . . . . . . . . . 1 . . . . Best Kill Streak 16 | . 4 16 3 2 3 . 4 7 5 2 4 3 2 5 3 3 . 4 16 Combat Bots Only 16 | . 3 16 2 2 3 . 3 4 5 2 4 2 2 4 3 2 . 2 15 Max Kills in Single Turn 5 | . 2 5 2 1 1 . 1 3 2 1 2 1 1 2 1 2 . 2 3 Gunslinging 2 | . . . 1 . . . . 1 1 . 1 . . 1 . . . . 2 Exploded 5 | . 2 5 . . 1 . . . 2 . . . . . . . . . 3 Melee . | . . . . . . . . . . . . . . . . . . . . Uniques/NPCs Destroyed 2 | . . . . . 1 . . . . . . 1 . . . . . . . 8R-AWN (-9/Exiles) Data Miner (-7/Data Miner) Combat | -11 -10 -10 -9 -9 -9 -8 -8 -8 -7 -7 -7 -7 -6 -6 -6 -6 -6 -6 -5 -------- Run | Yrd Mat Min Mat Min Exi Min Mat Sto Fac Low Low Dat Pro Fac Ext Cet Arc Hub Fac Hostile Shots Fired 1022 | . 12 12 22 4 14 . 46 49 73 33 17 9 13 94 43 40 2 58 481 Missed 278 | . 4 3 7 3 2 . 11 9 25 11 8 2 5 23 17 17 1 14 116 Damage Taken 11689 | . 66 167 233 7 322 . 453 503 544 207 97 236 94 1133 190 411 26 290 6710 Core 845 | . 9 28 44 . 52 . 30 33 74 10 23 35 . 47 6 37 . 18 399 Absorbed by Shields 3833 | . . . 54 3 96 . 174 194 194 84 38 83 34 349 160 194 25 269 1882 Reduced by Siege Mode 748 | . . . . . . . . . . . . . . . . . . 9 739 Regen/Repaired (Parts) 689 | . . . 143 . . . . 431 115 . . . . . . . . . . Core Remaining (%) 38 | 100 . 33 . . . 14 . 52 . . . . 27 . . . . 7 . Volleys Fired 587 | . 31 14 51 6 22 . 54 48 52 17 6 9 8 54 23 18 5 28 141 Largest 4 | . 2 2 3 3 3 . 4 4 4 4 4 4 4 4 4 4 4 4 4 Hottest 136 | . 70 46 69 69 69 . 99 101 103 103 103 108 101 102 102 107 107 107 136 Shots Fired 2069 | . 57 21 153 19 59 . 217 185 178 68 24 35 32 212 94 72 21 100 522 Gun 2040 | . 54 14 153 19 56 . 217 185 173 68 24 35 32 212 94 72 21 97 514 Cannon 3 | . . . . . . . . . . . . . . . . . . 3 . Launcher 24 | . 3 7 . . 3 . . . 3 . . . . . . . . . 8 Special 2 | . . . . . . . . . 2 . . . . . . . . . . Kinetic 2024 | . 38 14 153 19 56 . 217 185 173 68 24 35 32 212 94 72 21 97 514 Thermal 19 | . 16 . . . . . . . . . . . . . . . . 3 . Explosive 24 | . 3 7 . . 3 . . . 3 . . . . . . . . . 8 Electromagnetic . | . . . . . . . . . . . . . . . . . . . . Robot Hit Streak 54 | . 9 4 12 7 14 . 21 10 9 4 2 7 5 17 12 22 12 25 54 Robot Miss Streak 10 | . 4 1 7 2 2 . 10 5 9 5 5 3 2 3 2 2 3 2 4 Penetration Max 1 | . . . . . . . . 1 1 . . . . . . 1 . 1 1 Secondary Targets 65 | . . . 1 . . . 3 5 6 2 2 1 1 6 2 2 . 4 30 Max Gunslinging Chain 2 | . . . 1 . . . 1 1 1 1 1 1 1 1 1 1 . 1 2 Shots Hit Robots 1335 | . 33 10 85 8 43 . 120 115 94 31 9 20 18 134 64 58 16 64 413 Core Hits 712 | . 15 33 35 5 17 . 46 48 55 18 5 9 6 64 31 24 4 38 259 Critical Kills 27 | . 1 . 2 . . . . 2 1 . . 2 . . . 1 . . 18 Critical Parts Destroyed 30 | . . . 2 . 1 . . 1 4 . . . . 2 . . 1 1 18 Critical Strikes 62 | . 1 . 4 . 1 . . 3 5 . . 3 . 2 . 1 1 1 40 Destroy 61 | . 1 . 4 . 1 . . 3 5 . . 2 . 2 . 1 1 1 40 Impale 1 | . . . . . . . . . . . . 1 . . . . . . . Melee Attacks 20 | . . . . . . . . . . 4 13 1 . 2 . . . . . Impact . | . . . . . . . . . . . . . . . . . . . . Slashing . | . . . . . . . . . . . . . . . . . . . . Piercing 20 | . . . . . . . . . . 4 13 1 . 2 . . . . . Sneak Attacks 1 | . . . . . . . . . . . . 1 . . . . . . . Combat Hostiles . | . . . . . . . . . . . . . . . . . . . . Follow-up Attacks . | . . . . . . . . . . . . . . . . . . . . Damage Inflicted 33637 | . 586 1263 1490 139 879 . 2069 2334 2518 708 181 412 306 2481 1351 1314 336 1626 13644 Guns 29071 | . 364 183 1462 130 629 . 2020 2299 2281 706 181 367 306 2471 1288 1314 336 1319 11415 Cannons . | . . . . . . . . . . . . . . . . . . . . Explosions 4193 | . 190 1063 . . 250 . . . 178 . . . . . . . . 300 2212 Melee 45 | . . . . . . . . . . . . 45 . . . . . . . Ramming 328 | . 32 17 28 9 . . 49 35 59 2 . . . 10 63 . . 7 17 Kinetic 28942 | . 235 183 1462 130 629 . 2020 2299 2281 706 181 367 306 2471 1288 1314 336 1319 11415 Thermal 129 | . 129 . . . . . . . . . . . . . . . . . . Explosive 3893 | . 190 1063 . . 250 . . . 178 . . . . . . . . . 2212 Electromagnetic 300 | . . . . . . . . . . . . . . . . . . 300 . Impact . | . . . . . . . . . . . . . . . . . . . . Slashing . | . . . . . . . . . . . . . . . . . . . . Piercing 45 | . . . . . . . . . . . . 45 . . . . . . . Highest Corruption 20 | . . . 2 2 2 2 1 1 3 . . . . 2 3 3 3 9 20 Average Corruption 2 | . . . 1 2 2 2 1 1 1 . . . . 2 2 3 3 6 13 Corruption Purged 3 | . . . . . . . . . 3 . . . . . . . . . . Corruption Blocked . | . . . . . . . . . . . . . . . . . . . . Effects 190 | . . . 33 22 14 8 8 12 8 . . . . 2 27 9 2 14 31 Message Errors 50 | . . . 12 5 2 4 3 4 2 . . . . . 8 4 . 2 4 Matter Fused 33 | . . . 2 4 3 2 1 1 2 . . . . 1 8 1 . 3 5 Heat Flow Errors 17 | . . . 4 4 1 . . 1 1 . . . . . 2 . . 3 1 Energy Discharges 20 | . . . 3 2 1 . 1 4 1 . . . . . 3 . . 3 2 Parts Rejected 5 | . . . . . . . . . . . . . . . 1 . . . 4 Parts Fused 4 | . . . 1 . . . . . . . . . . . . 2 . . 1 Data Loss (minor) 24 | . . . 6 2 1 2 1 2 1 . . . . . 3 2 1 2 1 Data Loss (major) 10 | . . . 3 3 2 . . . 1 . . . . . . . . 1 . Misfires 9 | . . . 1 1 1 . 1 . . . . . . 1 2 . 1 . 1 Alerts 6 | . . . . 1 3 . 1 . . . . . . . . . . . 1 Weapon Failures 12 | . . . 1 . . . . . . . . . . . . . . . 11 Overload Shots . | . . . . . . . . . . . . . . . . . . . . Overflow Damage 49 | . . 7 . . 14 . . . . . . . . . . . . . 28 Projectiles . | . . . . . . . . . . . . . . . . . . . . Explosions 49 | . . 7 . . 14 . . . . . . . . . . . . . 28 Melee . | . . . . . . . . . . . . . . . . . . . . Knockbacks 3 | . . . . . . . 1 1 . . . . . . 1 . . . . Impact 3 | . . . . . . . 1 1 . . . . . . 1 . . . . Kinetic . | . . . . . . . . . . . . . . . . . . . . Secondary . | . . . . . . . . . . . . . . . . . . . . Self-Inflicted Damage 382 | . . . . . 59 . . . . . . . . . . . . 71 252 Shots 10 | . . . . . 2 . . . . . . . . . . . . 1 7 Rammed 36 | . 5 3 5 2 . . 3 3 6 1 . . . 1 4 . . 1 2 Targets Rammed 41 | . 5 4 6 2 . . 4 5 6 1 . . . 1 4 . . 1 2 Kicked . | . . . . . . . . . . . . . . . . . . . . Crushed 5 | . . 1 1 . . . 1 2 . . . . . . . . . . . Highest Temperature 312 | . 70 4 181 244 161 . 114 312 276 216 304 226 208 33 130 . . 215 88 Average Temperature 59 | . 17 3 46 73 45 . 30 76 78 85 152 123 89 6 72 . . 101 12 Received Heat Transfer 2007 | . . 42 62 . . . 129 209 85 32 . . 12 148 45 . . 45 1198 Effects 3 | . . . . . . . . . 3 . . . . . . . . . . Interference 3 | . . . . . . . . . 3 . . . . . . . . . . Siege Activations 26 | . . . . . . . . . . . . . . . . . 2 6 18 Total Turns 466 | . . . . . . . . . . . . . . . . . 11 47 408 Longest Duration 77 | . . . . . . . . . . . . . . . . . 7 12 77 Robots Corrupted . | . . . . . . . . . . . . . . . . . . . . Combat Hostiles . | . . . . . . . . . . . . . . . . . . . . Parts Fried 1 | . . . . . . . . 1 . . . . . . . . . . . Impact Corruptions . | . . . . . . . . . . . . . . . . . . . . Robots Melted . | . . . . . . . . . . . . . . . . . . . . Combat Hostiles . | . . . . . . . . . . . . . . . . . . . . Parts Melted 5 | . . . . . . . 4 . . . . . . . . . . . 1 Heat Transferred 370 | . 370 . . . . . . . . . . . . . . . . . . Parts Sabotaged 7 | . . . . . . . . . . . . . . . . . . . 7 Parts Stolen . | . . . . . . . . . . . . . . . . . . . . Parts Stripped . | . . . . . . . . . . . . . . . . . . . . Power Chain Reactions . | . . . . . . . . . . . . . . . . . . . . Alert | -11 -10 -10 -9 -9 -9 -8 -8 -8 -7 -7 -7 -7 -6 -6 -6 -6 -6 -6 -5 ------- Run | Yrd Mat Min Mat Min Exi Min Mat Sto Fac Low Low Dat Pro Fac Ext Cet Arc Hub Fac Peak Influence 4163 | . 347 109 216 102 . . 557 1561 1585 . . . . 940 871 623 398 978 4163 Initial 709 | . . 36 16 70 . . . 196 709 . . . . 152 423 440 249 139 478 Average 499 | . 142 36 124 60 . . 310 884 964 . . . . 534 381 540 343 558 1887 Maximum Alert Level 5 | . 1 . 1 . . . 2 4 4 . . . . 3 3 2 1 3 5 Low Security (%) 41 | 100 58 100 88 100 . 100 18 . . . . . . 19 19 . . 10 . Level 1 15 | . 41 . 11 . . . 49 . . . . . . 18 31 . 100 18 . Level 2 17 | . . . . . . . 32 35 15 . . . . 23 38 100 . 32 21 Level 3 14 | . . . . . . . . 39 45 . . . . 37 10 . . 38 15 Level 4 7 | . . . . . . . . 24 39 . . . . . . . . . 9 Level 5 1 | . . . . . . . . . . . . . . . . . . . 15 High Security 2 | . . . . . . . . . . . . . . . . . . . 38 Max Security . | . . . . . . . . . . . . . . . . . . . . Sterilizations 1 | . . . . . . . . . . . . . . . . . . . 1 Squads Dispatched 88 | . 1 . 4 . . . 3 7 7 . . . . 15 7 . . 4 40 Investigation 12 | . 1 . 2 . . . . 2 1 . . . . . 3 . . 1 2 Extermination 10 | . . . . . . . . . 3 . . . . 4 . . . 1 2 Reinforcement 17 | . . . 2 . . . 3 2 . . . . . 4 1 . . 2 3 Assault 37 | . . . . . . . . 3 3 . . . . 1 3 . . . 27 Garrison 10 | . . . . . . . . . . . . . . 6 . . . . 4 Intercept 2 | . . . . . . . . . . . . . . . . . . . 2 Searches Triggered . | . . . . . . . . . . . . . . . . . . . . Construction Impeded 2 | . . . . . . . . 1 . . . . . 1 . . . . . Haulers Reinforced 4 | . . . . . . . . . . . . . . . . . . 1 3 Active Scanning Responses . | . . . . . . . . . . . . . . . . . . . . Cargo Convoy Interrupts . | . . . . . . . . . . . . . . . . . . . . Stealth | -11 -10 -10 -9 -9 -9 -8 -8 -8 -7 -7 -7 -7 -6 -6 -6 -6 -6 -6 -5 --------- Run | Yrd Mat Min Mat Min Exi Min Mat Sto Fac Low Low Dat Pro Fac Ext Cet Arc Hub Fac Distress Signals 17 | . 1 . 4 . . . 4 . . . . . . . 2 2 . 2 2 Communications Jammed . | . . . . . . . . . . . . . . . . . . . . Distress Signals . | . . . . . . . . . . . . . . . . . . . . Times Spotted 503 | . 16 20 33 5 7 . 32 52 45 19 4 4 7 40 42 9 6 20 142 Peak Tracking Total 19 | . 3 18 4 3 9 . 5 9 6 9 4 3 4 7 8 5 1 10 19 Tactical Retreats 12 | . . . 2 . . . 1 . 2 . . . . . 1 . . 1 5 Traps | -11 -10 -10 -9 -9 -9 -8 -8 -8 -7 -7 -7 -7 -6 -6 -6 -6 -6 -6 -5 ------- Run | Yrd Mat Min Mat Min Exi Min Mat Sto Fac Low Low Dat Pro Fac Ext Cet Arc Hub Fac Traps Triggered 17 | . . . 4 . . . 1 . 3 . . . . . 3 . . 5 1 Indirectly . | . . . . . . . . . . . . . . . . . . . . Trap Hack Attempts . | . . . . . . . . . . . . . . . . . . . . Triggered . | . . . . . . . . . . . . . . . . . . . . Disarmed . | . . . . . . . . . . . . . . . . . . . . Reprogrammed . | . . . . . . . . . . . . . . . . . . . . Reused . | . . . . . . . . . . . . . . . . . . . . Traps Extracted . | . . . . . . . . . . . . . . . . . . . . Installed . | . . . . . . . . . . . . . . . . . . . . Triggered 1 | . . . . . . . . . . . . . 1 . . . . . . Machines | -11 -10 -10 -9 -9 -9 -8 -8 -8 -7 -7 -7 -7 -6 -6 -6 -6 -6 -6 -5 ---------- Run | Yrd Mat Min Mat Min Exi Min Mat Sto Fac Low Low Dat Pro Fac Ext Cet Arc Hub Fac Machines Disabled 98 | . 1 . . 1 7 . 9 11 20 1 . . . 8 3 . 2 18 17 Max in Single Turn 4 | . . . . 1 2 . 1 1 . . . . . . 1 . 1 4 1 Garrison Access 2 | . . . . . . . 1 1 . . . . . . . . . . . Network Hub 1 | . . . . . . . . . . . . . . . . . . 1 . Energy Cycler 1 | . . . . . . . . . . . . . . . 1 . . . . Machines Repaired . | . . . . . . . . . . . . . . . . . . . . Machines Dismantled . | . . . . . . . . . . . . . . . . . . . . Machines Sabotaged . | . . . . . . . . . . . . . . . . . . . . Overloaded Fab Kills . | . . . . . . . . . . . . . . . . . . . . Hacking | -11 -10 -10 -9 -9 -9 -8 -8 -8 -7 -7 -7 -7 -6 -6 -6 -6 -6 -6 -5 --------- Run | Yrd Mat Min Mat Min Exi Min Mat Sto Fac Low Low Dat Pro Fac Ext Cet Arc Hub Fac Machines Accessed 65 | . 9 2 8 . 1 . 10 10 8 1 . 4 1 2 5 . . 3 1 Terminals 46 | . 8 1 6 . . . 8 8 5 . . . 1 1 4 . . 3 1 Fabricators 1 | . . . . . . . . . 1 . . . . . . . . . . Repair Stations 5 | . . . 1 . . . . 2 1 . . . . . 1 . . . . Recycling Units 2 | . 1 . 1 . . . . . . . . . . . . . . . . Scanalyzers 2 | . . . . . . . 1 . . . . . . 1 . . . . . Garrison Access 2 | . . . . . . . 1 . 1 . . . . . . . . . . Total Hacks 233 | . 29 6 34 . 5 . 39 37 19 1 . 28 1 3 17 . . 7 7 Successful 146 | . 20 3 21 . 5 . 21 23 9 1 . 28 1 2 6 . . 3 3 Failed 85 | . 8 3 12 . . . 18 14 10 . . . . 1 11 . . 4 4 Catastrophic 24 | . . 1 3 . . . 7 4 2 . . . . . 6 . . . 1 Database Lockouts 2 | . 1 . 1 . . . . . . . . . . . . . . . . Manual 98 | . 16 5 23 . . . 22 10 8 . . . . 1 5 . . 5 3 Terminals 152 | . 28 5 29 . . . 26 20 12 . . . 1 2 15 . . 7 7 Fabricators 1 | . . . . . . . . . 1 . . . . . . . . . . Repair Stations 27 | . . . 4 . . . . 17 4 . . . . . 2 . . . . Recycling Units 2 | . 1 . 1 . . . . . . . . . . . . . . . . Scanalyzers 10 | . . . . . . . 9 . . . . . . 1 . . . . . Garrison Access 6 | . . . . . . . 4 . 2 . . . . . . . . . . Terminal Hacks 83 | . 11 2 10 . 5 . 7 6 4 1 . 28 1 . 5 . . 1 2 Record 18 | . . . . . 5 . . . . . . 11 1 . 1 . . . . Part Schematic 10 | . . . . . . . . . . . . 9 . . . . . . 1 Robot Schematic 5 | . . . . . . . . . . . . 5 . . . . . . . Robot Analysis 5 | . 4 . 1 . . . . . . . . . . . . . . . . Prototype ID Bank 9 | . 1 1 3 . . . . . 1 . . 3 . . . . . . . Open Door 5 | . . 1 . . . . . 3 . 1 . . . . . . . . . Branch Access Points 4 | . 1 . . . . . 1 . 1 . . . . . . . . . 1 Terminal Index 2 | . . . . . . . 1 . 1 . . . . . . . . . . Alert Level 10 | . 1 . 3 . . . 3 . 1 . . . . . 1 . . 1 . Unreport Threat 7 | . . . 1 . . . 2 1 . . . . . . 3 . . . . Locate Traps 1 | . 1 . . . . . . . . . . . . . . . . . . Hauler Manifests 4 | . 2 . 2 . . . . . . . . . . . . . . . . Zone Layout 3 | . 1 . . . . . . 2 . . . . . . . . . . . Fabricator Hacks . | . . . . . . . . . . . . . . . . . . . . Repair Station Hacks 22 | . . . 4 . . . . 13 4 . . . . . 1 . . . . Scan Component 12 | . . . 2 . . . . 7 2 . . . . . 1 . . . . Repair 10 | . . . 2 . . . . 6 2 . . . . . . . . . . Recycling Unit Hacks . | . . . . . . . . . . . . . . . . . . . . Scanalyzer 9 | . . . . . . . 8 . . . . . . 1 . . . . . Insert Component 5 | . . . . . . . 4 . . . . . . 1 . . . . . Analyze 4 | . . . . . . . 4 . . . . . . . . . . . . Garrison Access Hacks 1 | . . . . . . . 1 . . . . . . . . . . . . Seal Access 1 | . . . . . . . 1 . . . . . . . . . . . . Unauthorized Hacks 31 | . 9 1 7 . . . 5 4 1 . . . . 1 . . . 2 1 Terminals 29 | . 8 1 6 . . . 5 4 1 . . . . 1 . . . 2 1 Botnet 29 | . 8 1 6 . . . 5 4 1 . . . . 1 . . . 2 1 Fabricators . | . . . . . . . . . . . . . . . . . . . . Repair Stations . | . . . . . . . . . . . . . . . . . . . . Recycling Units 2 | . 1 . 1 . . . . . . . . . . . . . . . . Tunnel 2 | . 1 . 1 . . . . . . . . . . . . . . . . Scanalyzers . | . . . . . . . . . . . . . . . . . . . . Garrison Access . | . . . . . . . . . . . . . . . . . . . . Data Cores Recovered 1 | . 1 . . . . . . . . . . . . . . . . . . Used . | . . . . . . . . . . . . . . . . . . . . Hacking Detections 50 | . 7 1 6 . . . 8 9 8 . . . 1 2 5 . . 2 1 Full Trace Events 7 | . . 1 . . . . . 1 1 . . . . . 3 . . . 1 Feedback Events 1 | . . . . . . . . . . . . . . . 1 . . . . Corruption 1 | . . . . . . . . . . . . . . . 1 . . . . Feedback Blocked . | . . . . . . . . . . . . . . . . . . . . Robot Schematics Acquired 5 | . . . . . . . . . . . . 5 . . . . . . . Robots Built . | . . . . . . . . . . . . . . . . . . . . Authchips . | . . . . . . . . . . . . . . . . . . . . Time . | . . . . . . . . . . . . . . . . . . . . Total Robot Build Rating . | . . . . . . . . . . . . . . . . . . . . Part Schematics Acquired 13 | . . . . . . . 3 . . . . 9 . . . . . . 1 Parts Built . | . . . . . . . . . . . . . . . . . . . . Authchips . | . . . . . . . . . . . . . . . . . . . . Time . | . . . . . . . . . . . . . . . . . . . . Total Part Build Rating . | . . . . . . . . . . . . . . . . . . . . Parts Repaired 10 | . . . 2 . . . . 6 2 . . . . . . . . . . Time 381 | . . . 83 . . . . 222 76 . . . . . . . . . . Parts Recycled . | . . . . . . . . . . . . . . . . . . . . Recycled Matter . | . . . . . . . . . . . . . . . . . . . . Retrieved Matter . | . . . . . . . . . . . . . . . . . . . . Retrieved Components . | . . . . . . . . . . . . . . . . . . . . Parts Scanalyzed 4 | . . . . . . . 4 . . . . . . . . . . . . Part Schematics Acquired 3 | . . . . . . . 3 . . . . . . . . . . . . Parts Damaged . | . . . . . . . . . . . . . . . . . . . . Bothacking | -11 -10 -10 -9 -9 -9 -8 -8 -8 -7 -7 -7 -7 -6 -6 -6 -6 -6 -6 -5 ------------ Run | Yrd Mat Min Mat Min Exi Min Mat Sto Fac Low Low Dat Pro Fac Ext Cet Arc Hub Fac Used RIF Installer . | . . . . . . . . . . . . . . . . . . . . Robots Hacked . | . . . . . . . . . . . . . . . . . . . . Non-combat . | . . . . . . . . . . . . . . . . . . . . Combat . | . . . . . . . . . . . . . . . . . . . . Robot Hacks Applied . | . . . . . . . . . . . . . . . . . . . . Relay Couplers Released 5 | . . . . . . . . 2 . . . . . 3 . . . . . Machine Destruction 2 | . . . . . . . . 2 . . . . . . . . . . . Programmers 3 | . . . . . . . . . . . . . . 3 . . . . . Fabnet Peak Effective % . | . . . . . . . . . . . . . . . . . . . . Robots Rewired 16 | . . . . . . . . . . 2 . . . . 14 . . . . Allies Hacked . | . . . . . . . . . . . . . . . . . . . . Hacks Repelled . | . . . . . . . . . . . . . . . . . . . . Allies | -11 -10 -10 -9 -9 -9 -8 -8 -8 -7 -7 -7 -7 -6 -6 -6 -6 -6 -6 -5 -------- Run | Yrd Mat Min Mat Min Exi Min Mat Sto Fac Low Low Dat Pro Fac Ext Cet Arc Hub Fac Total Allies 25 | . 1 4 . . . . . 2 . 2 . . . . 16 . . . . Largest Group 11 | . 1 4 2 1 1 1 1 3 1 3 3 3 1 1 11 1 1 1 1 Highest-Rated Group 516 | . 61 117 80 72 72 72 90 208 105 144 145 145 101 118 516 138 138 138 153 Highest-Rated Ally 159 | . 61 62 72 72 72 72 90 100 105 100 97 100 101 118 159 138 138 138 153 Total Orders 1 | . . . . . . . . . . . . 1 . . . . . . . STAY 1 | . . . . . . . . . . . . 1 . . . . . . . Ally Attacks 727 | . 21 26 60 4 27 . 44 69 50 23 . 10 9 54 144 23 8 17 138 Total Damage 31490 | . 609 443 1332 56 653 . 2140 3124 3061 859 . 556 433 3755 4049 636 512 1277 7995 Kills 286 | . 12 7 18 2 4 . 28 36 29 13 . 1 5 28 34 4 4 10 51 Allies Corrupted . | . . . . . . . . . . . . . . . . . . . . Allies Melted . | . . . . . . . . . . . . . . . . . . . . Intel | -11 -10 -10 -9 -9 -9 -8 -8 -8 -7 -7 -7 -7 -6 -6 -6 -6 -6 -6 -5 ------- Run | Yrd Mat Min Mat Min Exi Min Mat Sto Fac Low Low Dat Pro Fac Ext Cet Arc Hub Fac Robot Analysis Total 139 | . 4 . 1 . . . . . . . . 134 . . . . . . . Derelict Logs Recovered 6 | . . 1 . 1 . . . . . 2 1 . 1 . . . . . . Drone Launches . | . . . . . . . . . . . . . . . . . . . . Drone Recoveries . | . . . . . . . . . . . . . . . . . . . . Exploration | -11 -10 -10 -9 -9 -9 -8 -8 -8 -7 -7 -7 -7 -6 -6 -6 -6 -6 -6 -5 ------------- Run | Yrd Mat Min Mat Min Exi Min Mat Sto Fac Low Low Dat Pro Fac Ext Cet Arc Hub Fac Turns Passed 25230 | 71 1346 1858 3065 1624 1058 339 2428 1735 2627 1741 901 386 687 1320 1631 324 119 449 1521 Spaces Moved 8834 | 51 581 555 834 498 295 104 918 545 988 724 378 147 293 464 608 143 41 175 492 Core 19 | 19 . . . . . . . . . . . . . . . . . . . Treads 8815 | 32 581 555 834 498 295 104 918 545 988 724 378 147 293 464 608 143 41 175 492 Legs . | . . . . . . . . . . . . . . . . . . . . Wheels . | . . . . . . . . . . . . . . . . . . . . Hover . | . . . . . . . . . . . . . . . . . . . . Flight . | . . . . . . . . . . . . . . . . . . . . Fastest Speed 50 | 50 160 320 320 320 320 320 225 225 225 225 225 225 225 225 225 150 160 160 160 Average Speed 241 | 119 196 320 320 320 320 320 226 225 225 225 225 225 225 225 225 168 160 160 160 Slowest Speed 320 | 160 320 320 320 320 320 320 235 225 225 225 225 225 225 225 228 230 160 160 160 Overloaded Moves . | . . . . . . . . . . . . . . . . . . . . Propulsion Burnouts . | . . . . . . . . . . . . . . . . . . . . Robots Hopped . | . . . . . . . . . . . . . . . . . . . . Cave-ins Triggered . | . . . . . . . . . . . . . . . . . . . . Exploration Rate (%) 60 | 4 93 99 88 96 54 34 81 92 31 80 49 78 60 17 78 56 57 29 24 Regions Visited 19 Branch Regions 13 Pre-discovered Areas 23 | . 1 . 1 . 1 . . . . . . 20 . . . . . . . Known Exits Taken 4 | . 1 . . . . . 1 . 1 . . . . 1 . . . . . Unknown Exits Taken 15 | 1 . 1 1 1 1 1 . 1 . 1 1 1 1 . 1 1 1 1 . Scrap Searched 2 | . . 1 . . . . . . . 1 . . . . . . . . . Spaces Dug 39 | . 12 10 . . 6 . . . . 3 4 . . 1 . . . 3 . Terrain Destroyed 346 | . 19 51 . . 11 . 1 . 3 3 5 1 . 3 22 . . 173 54 Melee 8 | . . . . . . . . . . 3 4 . . 1 . . . . . Projectile 40 | . . . . . . . 1 . . . 1 1 . 2 3 . . 7 25 AOE 297 | . 19 51 . . 11 . . . 3 . . . . . 19 . . 166 28 Terrain Rammed . | . . . . . . . . . . . . . . . . . . . . Walls Destroyed . | . . . . . . . . . . . . . . . . . . . . Machines Disabled . | . . . . . . . . . . . . . . . . . . . . Actions | -11 -10 -10 -9 -9 -9 -8 -8 -8 -7 -7 -7 -7 -6 -6 -6 -6 -6 -6 -5 --------- Run | Yrd Mat Min Mat Min Exi Min Mat Sto Fac Low Low Dat Pro Fac Ext Cet Arc Hub Fac Total 11538 | 58 729 607 1120 515 369 112 1166 962 1309 802 400 185 310 645 817 191 84 283 874 Wait 1471 | . 82 29 165 8 30 6 120 342 224 36 3 20 8 81 69 3 35 65 145 Move 8815 | 50 580 554 833 497 294 103 917 544 987 723 377 146 292 463 607 142 40 174 492 Hop . | . . . . . . . . . . . . . . . . . . . . Pick Up 156 | 2 17 3 25 1 7 1 21 5 9 . . 2 1 18 6 9 2 4 23 Fast Attach 56 | 6 2 . 8 . 1 . 5 8 7 . . 2 . . 3 3 . 1 10 Attach 50 | . . . 2 . 1 . 4 1 2 1 . . . 14 1 2 . . 22 Detach . | . . . . . . . . . . . . . . . . . . . . Swap 97 | . 6 3 8 . 8 1 11 2 6 4 1 2 . 6 3 2 . 5 29 Drop 131 | . 6 . 22 1 6 1 30 7 12 . . 3 1 6 7 12 2 5 10 Fire 587 | . 31 14 51 6 22 . 54 48 52 17 6 9 8 54 23 18 5 28 141 Melee 20 | . . . . . . . . . . 4 13 1 . 2 . . . . . Ram . | . . . . . . . . . . . . . . . . . . . . Kick . | . . . . . . . . . . . . . . . . . . . . Crush 41 | . 5 4 6 2 . . 4 5 6 1 . . . 1 4 . . 1 2 Escape Stasis 10 | . . . . . . . . . 4 . . . . . 6 . . . . Rewire 104 | . . . . . . . . . . 16 . . . . 88 . . . . Trap . | . . . . . . . . . . . . . . . . . . . . Miscellaneous . | . . . . . . . . . . . . . . . . . . . . Route ------- -11/Scrapyard -10/Materials (discovered 5 exits: *Mat x3 / *Min x2) -10/Mines (discovered 2 exits: *Mat x2) -9/Materials (discovered 4 exits: *Mat x2 / [*Min x2]) -9/Mines (discovered 3 exits: *Mat x2 / *Exi) -9/Exiles -8/Mines -8/Materials (discovered 4 exits: *Fac x3 / *Sto) -8/Storage (discovered 2 exits: *Fac / [*Rec]) -7/Factory (discovered 2 exits: *Low x2) -7/Lower Caves (discovered 2 exits: [*Low] / [*Zio]) -7/Lower Caves -7/Data Miner -6/Proximity Caves -6/Factory -6/Extension (discovered 3 exits: *Fac x2 / *Cet) -6/Cetus (discovered 2 exits: *Fac / [*Arc]) -6/Archives -6/Hub_04(d) -5/Factory (discovered 3 exits: [*Fac] / Upp x2) History --------- Turn | Location | Event 8 | -11/Scrapyard | Discovered new exit (range 15) 72 | -11/Scrapyard | Entered Materials 135 | -10/Materials | Central database locked down 250 | -10/Materials | Identified exit to Mines 321 | -10/Materials | Build established: Mutant 369 | -10/Materials | Discovered new exit (range 7) 624 | -10/Materials | Discovered new exit (range 15) 991 | -10/Materials | Discovered new exit (range 15) 1418 | -10/Materials | Entered Mines 1605 | -10/Mines | Discovered new exit (range 7) 1625 | -10/Mines | Met a Derelict who couldn't figure out how to use a Trap Extractor 2144 | -10/Mines | Assisted by bots powering up and referring to "LRC-V3" 2250 | -10/Mines | Discovered new exit (range 4) 2593 | -10/Mines | Assembled infested the area 2598 | -10/Mines | Assisted by a Guerilla fighting off Assembled 2609 | -10/Mines | Core integrity fell below 50% 2631 | -10/Mines | Destroyed 16 combat bots 2679 | -10/Mines | Learned Materials security intel 2963 | -10/Mines | Received a Mining Laser from a helpful Derelict 3276 | -10/Mines | Entered Materials 3276 | -9/Materials | Accompanied by 1 ally 3276 | -9/Materials | Evolved 2 slots: Utility x1, Weapon x1 3564 | -9/Materials | Build established: Gunner 3909 | -9/Materials | Discovered new exit (range 16) 4396 | -9/Materials | Discovered new exit (range 16) 4506 | -9/Materials | Discovered new exit (range 10) 4829 | -9/Materials | Central database locked down 4884 | -9/Materials | Build established: Tank 5070 | -9/Materials | Repaired Hvy. Assault Rifle 5122 | -9/Materials | Repaired Imp. Assault Rifle 5409 | -9/Materials | Discovered new exit (range 16) 6341 | -9/Materials | Entered Mines 6345 | -9/Mines | Met a Derelict bent on vengeance 6760 | -9/Mines | Discovered new exit (range 12) 6930 | -9/Mines | Learned Materials stockpile data 7294 | -9/Mines | Discovered new exit (range 11) 7951 | -9/Mines | Deemed a non-threat by the Exiles lab entrance 7951 | -9/Mines | Discovered new exit (range 5) 7965 | -9/Mines | Entered Exiles 8043 | -9/Exiles | Met 8R-AWN 8108 | -9/Exiles | Met EX-HEX 8249 | -9/Exiles | Met EX-DEC 8300 | -9/Exiles | Learned location of Zion (-6) 8468 | -9/Exiles | Discovered new exit (range 10) 8655 | -9/Exiles | Attacked by the Exiles 8741 | -9/Exiles | Core integrity fell below 50% 8785 | -9/Exiles | Core integrity fell below 20% 8794 | -9/Exiles | Destroyed 8R-AWN 8797 | -9/Exiles | Found Prototype Ballistic Gun 8809 | -9/Exiles | Identified 8R-AWN's Boregun 9023 | -9/Exiles | Entered Mines 9305 | -8/Mines | Discovered new exit (range 9) 9362 | -8/Mines | Entered Materials 9362 | -8/Materials | Evolved 2 slots: Propulsion x1, Weapon x1 10031 | -8/Materials | Discovered new exit (range 10) 10270 | -8/Materials | Identified exit to Storage 10592 | -8/Materials | Discovered new exit (range 10) 10958 | -8/Materials | Discovered new exit (range 9) 11790 | -8/Materials | Entered Storage 12078 | -8/Storage | Repaired Autogun 12118 | -8/Storage | Repaired Adv. Treads 12157 | -8/Storage | Repaired Adv. Treads 12652 | -8/Storage | Met 01-MTF 12779 | -8/Storage | Repaired Hrd. Medium Armor Plating 12824 | -8/Storage | Repaired Gauss Rifle 12858 | -8/Storage | Repaired Shield Generator 13019 | -8/Storage | Discovered new exit (range 16) 13282 | -8/Storage | Discovered new exit (range 9) 13390 | -8/Storage | First assault squad dispatched 13525 | -8/Storage | Entered Factory 13525 | -7/Factory | Accompanied by 1 ally (01-MTF) 13525 | -7/Factory | Evolved 2 slots: Propulsion x1, Utility x1 13530 | -7/Factory | 01-MTF left 14192 | -7/Factory | Repaired Adv. Treads 14231 | -7/Factory | Repaired Adv. Treads 14325 | -7/Factory | First assault squad dispatched 14771 | -7/Factory | Identified exit to Lower Caves 16152 | -7/Factory | Entered Lower Caves 16980 | -7/Lower Caves | Discovered new exit (range 9) 17040 | -7/Lower Caves | A Derelict revealed a hidden shortcut to a safe place 17384 | -7/Lower Caves | Encountered a Warlord checkpoint 17419 | -7/Lower Caves | Learned Factory trap positions 17431 | -7/Lower Caves | Attracted the attention of an 0b10 checkpoint 17475 | -7/Lower Caves | Learned 4 Factory zone layouts 17587 | -7/Lower Caves | Attracted the attention of an 0b10 outpost 17599 | -7/Lower Caves | Core integrity fell below 50% 17893 | -7/Lower Caves | Entered another Lower Caves area 17893 | -7/Lower Caves | Accompanied by 2 allies 18171 | -7/Lower Caves | Discovered new exit (range 11) 18219 | -7/Lower Caves | Learned Factory security intel 18794 | -7/Lower Caves | Entered Data Miner 18794 | -7/Data Miner | Accompanied by 2 allies 18794 | -7/Data Miner | Discovered new exit (range 6) 18837 | -7/Data Miner | Met Data Miner 18920 | -7/Data Miner | Learned location of Section 7 (-3) 18920 | -7/Data Miner | Acquired the access code to Warlord's prototype stash 18943 | -7/Data Miner | Received God Mode back door access code from Data Miner 18978 | -7/Data Miner | Destroyed Data Miner 18981 | -7/Data Miner | Interfaced with the Data Conduit 18986 | -7/Data Miner | Found Prototype Hackware 19043 | -7/Data Miner | Found Prototype Hackware 19043 | -7/Data Miner | Identified Quantum Router 19049 | -7/Data Miner | Found Prototype Hackware 19049 | -7/Data Miner | Identified System Mapper 19180 | -7/Data Miner | Entered Proximity Caves 19337 | -6/Proximity Caves | Build established: Hacker-Tank 19522 | -6/Proximity Caves | Spotter reported a threat 19821 | -6/Proximity Caves | Learned Factory stockpile data 19839 | -6/Proximity Caves | Discovered new exit (range 5) 19867 | -6/Proximity Caves | Entered Factory 19867 | -6/Factory | Evolved 2 slots: Utility x2 19868 | -6/Factory | Identified exit to Extension 19869 | -6/Factory | Loaded intel: 82 trap records 19872 | -6/Factory | Loaded intel: 255 machine locations 19992 | -6/Factory | Identified Ghost Barrier 20164 | -6/Factory | Garrison activated, responded to threat 20215 | -6/Factory | Lost 4 parts (1n1u2w) 20465 | -6/Factory | Garrison activated, responded to threat 20503 | -6/Factory | Lost 3 parts (1u2w) 20810 | -6/Factory | Build established: Scavenger-Tank 20917 | -6/Factory | First assault squad dispatched 20998 | -6/Factory | Core integrity fell below 50% 21039 | -6/Factory | Lost 3 parts (1n1u1w) 21187 | -6/Factory | Entered Extension 21188 | -6/Extension | Loaded intel: 36 machine locations 21198 | -6/Extension | Rescued a captive Derelict 21201 | -6/Extension | Rescued a captive Derelict 21205 | -6/Extension | Rescued a captive Derelict 21208 | -6/Extension | Rescued a captive Derelict 21222 | -6/Extension | Rescued a captive Derelict 21224 | -6/Extension | Rescued a captive Derelict 21226 | -6/Extension | Rescued a captive Derelict 21232 | -6/Extension | Rescued a captive Derelict 21302 | -6/Extension | Build established: Scavenger-Gunner 21374 | -6/Extension | Rescued A7 21537 | -6/Extension | First assault squad dispatched 21691 | -6/Extension | Lost 4 allies 21732 | -6/Extension | Build established: Commander-Gunner 22054 | -6/Extension | Build established: Scavenger-Gunner 22209 | -6/Extension | Spotted B-75 Beast 22222 | -6/Extension | Allies destroyed B-75 Beast 22230 | -6/Extension | Spotted B-75 Beast 22236 | -6/Extension | Allies destroyed B-75 Beast 22246 | -6/Extension | Extracted ID and sensor layout for unrecognized location from A7's data core 22246 | -6/Extension | Discovered new exit (range 15) 22653 | -6/Extension | Core integrity fell below 20% 22678 | -6/Extension | Lost 7 allies 22797 | -6/Extension | Discovered new exit (range 10) 22799 | -6/Extension | Discovered new exit (range 6) 22818 | -6/Extension | Entered Cetus 22819 | -6/Cetus | Loaded intel: 24 machine locations 22852 | -6/Cetus | Spotted Cetus Guard 22852 | -6/Cetus | Spotted Cetus Guard 22853 | -6/Cetus | Destroyed Cetus Guard 22854 | -6/Cetus | Spotted Cetus Guard 22854 | -6/Cetus | Spotted Cetus Guard 22862 | -6/Cetus | Allies destroyed Cetus Guard 22874 | -6/Cetus | Destroyed Cetus Guard 22881 | -6/Cetus | Allies destroyed Cetus Guard 22904 | -6/Cetus | Lost 3 parts (1n2w) 22994 | -6/Cetus | Discovered new exit (range 15) 23019 | -6/Cetus | Spotted Cetus Guard 23020 | -6/Cetus | Spotted Cetus Guard 23021 | -6/Cetus | Allies destroyed Cetus Guard 23022 | -6/Cetus | Spotted Cetus Guard 23025 | -6/Cetus | Allies destroyed Cetus Guard 23025 | -6/Cetus | Spotted Cetus Guard 23033 | -6/Cetus | Destroyed Cetus Guard 23043 | -6/Cetus | Destroyed Cetus Guard 23058 | -6/Cetus | Discovered new exit (range 15) 23066 | -6/Cetus | Met Revision 17 23142 | -6/Cetus | Entered Archives 23143 | -6/Archives | Loaded intel: 8 machine locations 23231 | -6/Archives | Discovered new exit (range 15) 23261 | -6/Archives | Entered Hub_04(d) 23262 | -6/Hub_04(d) | Loaded intel: 99 machine locations 23669 | -6/Hub_04(d) | Discovered new exit (range 8) 23702 | -6/Hub_04(d) | Network Hub disabled 23710 | -6/Hub_04(d) | Entered Factory 23710 | -5/Factory | Evolved 2 slots: Power x1, Utility x1 23711 | -5/Factory | Loaded intel: 252 machine locations 23914 | -5/Factory | Identified exit to Upper Caves 24010 | -5/Factory | First assault squad dispatched 24382 | -5/Factory | Discovered new exit (range 9) 24638 | -5/Factory | Garrison activated, responded to threat 24645 | -5/Factory | High security lockdown imminent 24647 | -5/Factory | Build established: Scavenger-Tank 24697 | -5/Factory | Intercept squad dispatched 24702 | -5/Factory | Spotted Tracker 24721 | -5/Factory | Destroyed Tracker 24725 | -5/Factory | High security lockdown engaged 24754 | -5/Factory | Spotted Combat Programmer 24757 | -5/Factory | Garrison activated, responded to threat 24784 | -5/Factory | Destroyed Combat Programmer 24808 | -5/Factory | System corruption reached 10% 24849 | -5/Factory | Lost 7 parts (2p1u4w) 24851 | -5/Factory | Destroyed 15 combat bots 24906 | -5/Factory | Core integrity fell below 50% 24958 | -5/Factory | Destroyed 10 combat bots 25068 | -5/Factory | Destroyed 14 combat bots 25081 | -5/Factory | Core integrity fell below 20% 25115 | -5/Factory | Lost 4 parts (1p2u1w) 25116 | -5/Factory | Destroyed 10 combat bots 25176 | -5/Factory | Lost 3 parts (1p2w) 25226 | -5/Factory | Sterilization system engaged 25226 | -5/Factory | Non-combat units ordered to evacuate 25231 | -5/Factory | Core destroyed Last Messages --------------- 25226_ ALERT: Persistent threat exposed, engaging Factory sterilization system. 25226_ ALERT: All non-combat units evacuate. 25226_ C-30 ARC bursts open, deploying its payload. 25226_ H-66 Slayer unfolds itself. 25226_ P-70 Sage unfolds itself. 25226_ E-15 Imp unfolds itself. 25228_ C-30 ARC bursts open, deploying its payload. 25228_ H-66 Slayer unfolds itself. 25228_ P-70 Sage unfolds itself. 25228_ I-47 Archangel unfolds itself. 25228_ Penetrated by Slug. 25228_ Slug penetrates E-15 Imp. 25228_ E-15 Imp destroyed. 25228_ Switching to secondary target: P-70 Sage. 25228_ Slug penetrates Wall. 25228_ Slug penetrates Pressure Siphon. 25228_ Penetrated by Slug. 25228_ Imp. Remote Force Field destroyed. 25229_ Penetrated by Slug. Map ----- +----------------------------------------------------+ | *!= !==!% %%!*% Y"=% % % ? | | ==!=[ /%=* %%= % ^^%[" """" [| ? | | ! = /%%=!= %^^ %" %%%" %* ? | | ! [ ===[=**[ == =%%" %=" ?? | | = = ! =%!#%# # #!/# ####+############/###?? | | = =! *= # =# #??????????? | | ! !* ="!=[ % #???"""????? | | ! =!!% != ! # #???"""????? | | =* [%%%= %[ [%! # #???"""????" | | !*!!!# =!! "#?????????" | | !=#=%==%%% # "#??"""????" | | ## ######"""[!!*=% /= ]] "#??"""????? | | ##### # !*! # ][ "#??"""????" | | #???#= # # # ] ] #?????????" | | #???# #### ## ## ##???"""???" | | #???# """"" #??### ## #?????R"???? | | #???# """"" ########"### #????"""???? | | ????# """ ## # ###############??????????? | | ????# ## ##################?????????? | | ????# ! ## """ + h C ?????????? | | ????############ """ # m pp ????????? | | ???????????????# """ #!= hp hi ?????????? | | ???????????????# #=!* %%""???????????? | | ???????????????########!%!!=%/ """"???????????? | | ?????????????????######!==[**!] %%"""???????????? | | ??????????#;;; =%[*%%!@[!!!] //???????? | | ??????????? ########### !!] //???????? | | ?????????????????????????# ????????? | | ??????????????????"""????# ????????? | | ??????????????????"""????# ########## #?????????? | | ??????????????????"""????# #????????????????????? | | ??????????"""????????????# +????????????????????? | | ??????????"""?????"""????# ##????????????????????? | | ??????????"""?????"""????? ??????????????????????? | | ??????????????????"""????? ??????????????????????? | | ?????????????????????????? ??????????????????????? | | ?????????????????????????? ???""""???????????????? | | ?????????????????????????? ???""""????""????"""??? | | ????????""?""????????????? ???""""????"""??""R"??? | | ????????""G""?????????????#???""""?????S"??""?"??? | | ??????????????????????????????""""????"""????????? | | ??????????????????????????????""""????"""????????? | | ?????????????????????????????????????????????????? | | ??????????????????????????T??????????????????????? | | ?????????????????????????????????????????????????? | | ??????""""?????????>?????????????????????????????? | | ??????""""???????????????????????????????????????? | | ??????""""???????????????????????????????????????? | | ??????""""????????????????????????"""?"""????????? | | ??????????????????????????????????"""?"""???"""??? | +----------------------------------------------------+ Best States ------------- Heat Dissipation 67 Coolant Potential 50 Energy Generation 45 Energy Capacity 600 Matter Stores 300 Matter Capacity 300 Sight Range 16 Robot Scan Range 16 Terrain Scan Density 10 Armor Coverage 450 Evasion (%) 50 Targeting Accuracy 8 Core Analysis 6 Recoil Reduction 4 Salvage Targeting 1 Offensive Hacking 20 Item Schematics ----------------- Lrn. Tractor Beam | -8/Materials | Scanalyzed Hrd. Medium Armor Plating | -8/Materials | Scanalyzed Hvy. Assault Rifle | -8/Materials | Scanalyzed Combat Drone Bay | -7/Data Miner | Free Lgt. Regenerative Plating | -7/Data Miner | Free Cld. Cesium-ion Thruster | -7/Data Miner | Free Gravity Neutralizer | -7/Data Miner | Free Imp. Heavy Machine Gun | -7/Data Miner | Free Nuclear Pulse Array | -7/Data Miner | Free Imp. Transmission Jammer | -7/Data Miner | Free Enh. Gauss Cannon | -7/Data Miner | Free Adv. Datajack | -7/Data Miner | Free Adv. Force Field | -5/Factory | Hacked Robot Schematics ------------------ G-50 Soldier | -7/Data Miner | Free M-28 Smith | -7/Data Miner | Free B-48 Gladiator | -7/Data Miner | Free E-15 Imp | -7/Data Miner | Free D-63 Destroyer | -7/Data Miner | Free Fabricated ------------ Nothing Alien Tech Used ----------------- None Achievements -------------- None Challenges ------------ None Player 2 | -11 -10 -10 -9 -9 -9 -8 -8 -8 -7 -7 -7 -7 -6 -6 -6 -6 -6 -6 -5 ---------- Run | Yrd Mat Min Mat Min Exi Min Mat Sto Fac Low Low Dat Pro Fac Ext Cet Arc Hub Fac Slots Evolved 10 | . . 2 . . . 2 . 2 . . . . 2 . . . . 2 . Power 1 | . . . . . . . . . . . . . 1 . . . . . . Propulsion 2 | . . . . . . . . 1 . . . . . . . . . 1 . Utility 3 | . . 2 . . . . . . . . . . 1 . . . . . . Weapon 4 | . . . . . . 2 . 1 . . . . . . . . . 1 . Parts Attached 234 | . 21 11 13 . 6 . 24 6 25 4 1 5 . 29 29 5 1 2 52 Parts Lost 59 | . . 2 . . 5 . . . 4 2 . 2 . 7 3 . . . 34 Damage Taken 12437 | . 54 265 458 24 743 . 541 275 1564 492 . 141 54 1538 758 84 50 153 5243 Core 2229 | . 10 119 80 . 165 . 134 62 193 123 . 48 . 473 170 . . 36 616 Player 2/Cogmind (%) 72 | . 52 80 64 . 76 . 81 65 72 92 . 57 . 90 96 . . 66 60 Absorbed by Shields 810 | . . . . . . . . . . . . . 20 206 306 27 47 113 91 Damage Inflicted 27653 | . 609 345 1287 56 653 . 2140 1768 3061 859 . 533 433 3755 1734 636 512 1277 7995 Player 2/Cogmind (%) 45 | . 50 21 46 28 42 . 50 43 54 54 . 56 58 60 56 32 60 43 36 Combat Hostiles Destroyed 182 | . 7 6 12 2 4 . 21 11 18 13 . 1 5 20 8 4 4 7 39 Player 2/Cogmind (%) 44 | . 58 25 52 33 50 . 70 39 51 68 . 25 62 58 47 50 100 46 30 Game ------ Seed EnergyWeightComputer Manual? 0 Play Time 02:43:41 Cumulative 1934.7 hours Start 2024.05.23 @ 20:09:52 End 2024.05.27 @ 14:54:12 Sessions 4 Manual Loads 0 Difficulty Rogue Special Mode AFD2020/Player2 Game No. 672 Rogue 672 Adventurer 0 Explorer 0 Win Type - Total 151 Types 30/14/65/7/1/2/30/1/1 Lore% 97 Gallery% 96 Achievement% 88 Wizard Run 0 Options --------- Layout 0 ASCII 0 Keyboard 0 Movement Numpad Keybinds 0 Fullscreen 2 Font 18/SmallcapsGlow Map View 76x50 Zoom Use 0% Tactical HUD 1 Map Filters NONE Filters NONE Steam 1 RUN: a3626a91-4c5f-4709-b1f5-2cc1adea46a4